[Event "58th Akiba Rubinstein A 2022"]
[Site "Polanica-Zdroj"]
[Date "2022.08.18"]
[Round "6.15"]
[White "Walkusz, Witoslaw"]
[Black "Paszkowski, Krystian"]
[Result "1/2-1/2"]
[ECO "B31"]
[WhiteElo "2001"]
[BlackElo "1988"]
[Annotator "NA RC"]
[PlyCount "21"]
[EventDate "2022.08.13"]
[EventCountry "POL"]
[SourceTitle "playchess.com"]
[Source "ChessBase"]
[SourceQuality "1"]
[TimeControl "40/5400+30:1800+30"]

1. e4 {[%emt 0:00:02]} c5 {[%emt 0:00:19]} 2. Nf3 {[%emt 0:00:07]} Nc6 {[%emt 0:00:05]} 3. Bb5 {[%emt 0:00:22]} g6 {[%emt 0:00:05]} 4. Bxc6 {[%emt 0:00:27]} dxc6 {[%emt 0:00:02]} 5. d3 {[%emt 0:00:08]} Bg7 {[%emt 0:00:04]} 6. h3 {[%emt 0:01:08]} Nf6 {[%emt 0:00:08]} 7. Nc3 {[%emt 0:00:19]} Nd7 {[%emt 0:00:09]} 8. Be3 {[%emt 0:01:23]} e5 {[%emt 0:00:08]} 9. Qd2 {[%emt 0:00:45]} h6 {[%emt 0:00:06]} 10. O-O {[%emt 0:02:42]} b6 {[%emt 0:00:07]} 11. a4 {[%emt 0:01:07]} 1/2-1/2

[Event "58th Akiba Rubinstein A 2022"]
[Site "Polanica-Zdroj"]
[Date "2022.08.19"]
[Round "7.1"]
[White "Koziorowicz, Michal"]
[Black "Siekanska, Maria"]
[Result "1-0"]
[ECO "B50"]
[WhiteElo "2231"]
[BlackElo "1964"]
[Annotator "NA RC"]
[PlyCount "73"]
[EventDate "2022.08.13"]
[EventCountry "POL"]
[SourceTitle "playchess.com"]
[Source "ChessBase"]
[SourceQuality "1"]
[TimeControl "40/5400+30:1800+30"]

1. e4 {[%emt 0:00:03]} c5 {[%emt 0:00:04]} 2. Nf3 {[%emt 0:00:09]} d6 {[%emt 0:00:06]} 3. c3 {[%emt 0:02:00]} Nf6 {[%emt 0:00:51]} 4. h3 {[%emt 0:00:15]} e6 {[%emt 0:03:41]} 5. Bd3 {[%emt 0:00:21]} Be7 $11 {[%emt 0:02:11]} 6. Bc2 {[%emt 0:00:24]} O-O {[%emt 0:01:20]} 7. d4 {[%emt 0:01:01]} b6 {[%emt 0:04:40]} 8. O-O {[%emt 0:00:19]} Bb7 {[%emt 0:00:14]} 9. Re1 {[%emt 0:00:33]} Nc6 {[%emt 0:01:05]} 10. Nbd2 {[%emt 0:05:57]} cxd4 {[%emt 0:00:39]} 11. cxd4 {[%emt 0:00:18]} Qc7 {[%emt 0:03:00]} 12. a3 {[%emt 0:02:59]} Rac8 {[%emt 0:00:58]} 13. Bd3 {[%emt 0:05:36]} a6 {[%emt 0:17:30]} 14. b4 {[%emt 0:11:29]} b5 {[%emt 0:13:56]} 15. Bb2 {[%emt 0:03:50]} Qb6 {[%emt 0:04:09]} 16. Nb3 {[%emt 0:10:04]} Rc7 {[%emt 0:10:24]} 17. Nfd2 {[%emt 0:08:11]} Rfc8 {[%emt 0:04:53]} 18. Rc1 {[%emt 0:11:27]} Qa7 {[%emt 0:04:00]} 19. Re3 {[%emt 0:09:25]} Nd7 {[%emt 0:04:32]} 20. Bb1 {[%emt 0:03:04]} Nb6 {[%emt 0:05:24]} 21. d5 {[%emt 0:01:47]} Ne5 {[%emt 0:01:23]} 22. Rxc7 {[%emt 0:00:23]} Rxc7 {[%emt 0:00:02]} 23. dxe6 {[%emt 0:01:15]} fxe6 {[%emt 0:01:03]} 24. Bd4 {[%emt 0:02:00]} Bg5 {[%emt 0:02:30]} 25. Qh5 {[%emt 0:01:41]} h6 {[%emt 0:01:25]} 26. Qe8+ {[%emt 0:02:06]} Kh7 {[%emt 0:00:01]} 27. Rg3 {[%emt 0:00:30]} Bc8 {[%emt 0:03:13]} 28. Nf3 {[%emt 0:05:49]} Bf6 {[%emt 0:00:24]} 29. Nxe5 {[%emt 0:00:49]} Bxe5 {[%emt 0:00:27]} 30. Qg6+ {[%emt 0:01:07]} Kg8 {[%emt 0:02:01]} 31. Qe8+ {[%emt 0:02:03]} Kh7 {[%emt 0:00:01]} 32. Rf3 {[%emt 0:00:10]} Bd7 {[%emt 0:01:24]} 33. Qd8 {[%emt 0:01:18]} Qb7 {[%emt 0:02:02]} 34. Rf7 {[%emt 0:01:50]} Qc8 {[%emt 0:02:56]} 35. Bxe5 {[%emt 0:00:38]} dxe5 {[%emt 0:01:01]} 36. Qe7 {[%emt 0:00:27]} Qg8 {[%emt 0:00:59]} 37. Rf8 {[%emt 0:00:21]} 1-0

[Event "58th Akiba Rubinstein A 2022"]
[Site "Polanica-Zdroj"]
[Date "2022.08.19"]
[Round "7.2"]
[White "Kowalczyk, Rafal"]
[Black "Cyborowski, Lukasz"]
[Result "1/2-1/2"]
[ECO "B40"]
[WhiteElo "2239"]
[BlackElo "2483"]
[Annotator "TA"]
[PlyCount "29"]
[EventDate "2022.08.13"]
[EventCountry "POL"]
[SourceTitle "playchess.com"]
[Source "ChessBase"]
[SourceQuality "1"]
[TimeControl "40/5400+30:1800+30"]

{[%evp 12,16,16,12,26,-8,4]} 1. e4 {[%emt 0:00:04]} c5 {[%emt 0:00:25]} 2. Nf3 {[%emt 0:00:32]} e6 {[%emt 0:00:21]} 3. g3 {[%emt 0:00:31]} Nc6 {[%emt 0:02:59]} 4. Bg2 {[%emt 0:00:11]} Nf6 {[%emt 0:00:20]} 5. Qe2 {[%emt 0:00:12]} d6 {[%emt 0:09:38]} 6. O-O {[%emt 0:00:49]} Be7 {[%emt 0:00:21]} 7. c3 {[%emt 0:00:19]} e5 {[%emt 0:00:39] C00: French: Unusual White 2nd moves.} 8. h3 {[%emt 0:22:31]} (8. Rd1 $5 {[%cal Rd2d4]}) 8... O-O {[%emt 0:01:18] [#] Not much happened in this game.} {Predecessor:} 9. Rd1 $146 Re8 10. Na3 Bf8 11. d3 h6 12. Nc4 b5 13. Ne3 Rb8 14. a4 b4 15. Nc4 {½-½ (74) Harika,D (2515)-Hou,Y (2658) Chess.com INT 2021} 1/2-1/2

[Event "58th Akiba Rubinstein A 2022"]
[Site "Polanica-Zdroj"]
[Date "2022.08.19"]
[Round "7.3"]
[White "Dziewonski, Dariusz"]
[Black "Razin, Vadim"]
[Result "0-1"]
[ECO "C16"]
[WhiteElo "2029"]
[BlackElo "2428"]
[Annotator "TA"]
[PlyCount "118"]
[EventDate "2022.08.13"]
[EventCountry "POL"]
[SourceTitle "playchess.com"]
[Source "ChessBase"]
[SourceQuality "1"]
[TimeControl "40/5400+30:1800+30"]

{[%evp 12,118,73,58,47,62,60,66,64,45,41,32,88,65,57,27,37,0,0,-11,53,29,29,29,31,18,18,21,53,47,63,0,0,0,0,0,0,0,35,34,33,36,39,49,20,0,0,0,0,0,0,0,-12,-31,-29,-31,-46,-34,-31,-32,-22,-29,-12,-31,0,-29,-35,-31,-9,-36,-13,-25,0,0,0,-458,-457,-1151,-1064,-1171,-1154,-1129,-1051,-1068,-566,-1822,-1900,-1331,-1744,-1697,-1460,-1266,-1104,-29984,-29985,-29985,-29986,-29986,-29987,-29987,-29988,-29988,-29989,-29989,-29990,-29991,-29992,-29992,-29993]} 1. e4 {[%emt 0:00:02]} e6 {[%emt 0:00:04]} 2. d4 {[%emt 0:00:05]} d5 {[%emt 0:00:03]} 3. Nc3 {[%emt 0:00:04]} Bb4 {[%emt 0:00:26]} 4. e5 {[%emt 0:00:12]} Qd7 {[%emt 0:00:05]} 5. Qg4 {[%emt 0:01:26]} f5 {[%emt 0:00:05]} 6. Qg3 {[%emt 0:00:11]} b6 {[%emt 0:00:05]} 7. a3 {[%emt 0:03:27]} Bxc3+ {[%emt 0:00:10] C16: French: 3 Nc3 Bb4 4 e5: Lines without ...c5.} 8. Qxc3 {[%emt 0:02:26] is the legacy move (8.bxc3).} Ba6 {[%emt 0:01:11]} 9. Bxa6 {[%emt 0:03:59]} Nxa6 {[%emt 0:00:01] White is slightly better.} 10. Qd3 {[%emt 0:03:01]} Nb8 {[%emt 0:00:24] [#]} 11. Ne2 $146 {[%emt 0:13:35]} ({Predecessor:} 11. Be3 Ne7 12. Ne2 O-O 13. h4 a5 14. h5 Na6 15. Bg5 c5 16. Bxe7 Qxe7 17. Nf4 cxd4 18. Qxd4 {0-1 (117) Sieber,F (2246)-Zatonskih,A (2431) Germany 2018}) 11... Nc6 {[%emt 0:01:38]} (11... c5 $14) 12. Bd2 {[%emt 0:03:36]} Nge7 {[%emt 0:04:21]} 13. Bb4 {[%emt 0:03:28]} a5 {[%emt 0:07:27]} 14. Bxe7 {[%emt 0:01:57]} Nxe7 {[%emt 0:00:02]} 15. h4 {[%emt 0:02:15]} g6 {[%emt 0:02:18]} (15... c5 $11) 16. a4 {[%emt 0:05:05]} c5 {[%emt 0:18:27]} 17. Qb5 {[%emt 0:05:47]} Qc6 {[%emt 0:05:25]} 18. Rh3 {[%emt 0:05:39] Hoping for dxc5.} Kf7 {[%emt 0:04:55]} 19. f4 {[%emt 0:05:04]} h6 {[%emt 0:03:05][%cal Og6g5]} 20. Rb3 {[%emt 0:04:50]} Rab8 {[%emt 0:08:12][%cal Og6g5]} 21. Qxc6 {[%emt 0:09:08]} (21. dxc5 $14 bxc5 22. Qxc6 Nxc6 23. Rb5) 21... Nxc6 $11 {[%emt 0:00:04]} 22. Rc3 {[%emt 0:00:11]} c4 {[%emt 0:14:12]} 23. b3 Nb4 {[%emt 0:01:29]} 24. bxc4 {[%emt 0:08:53]} Rbc8 {[%emt 0:10:31]} 25. c5 {[%emt 0:00:27]} bxc5 {[%emt 0:00:53]} 26. dxc5 {[%emt 0:00:10]} g5 $1 {[%emt 0:00:33]} 27. Kf2 {[%emt 0:07:22]} ({Not} 27. fxg5 $2 hxg5 28. Kf2 Rxh4 $19) 27... gxf4 {[%emt 0:00:38]} 28. Nxf4 {[%emt 0:00:17]} d4 {[%emt 0:09:39]} 29. Rc4 {[%emt 0:00:22]} Nc6 {[%emt 0:00:06]} 30. Nd3 {[%emt 0:03:25]} Rb8 {[%emt 0:02:11]} 31. Ra3 {[%emt 0:03:28]} Rb1 {[%emt 0:00:03]} 32. Rb3 {[%emt 0:00:31]} Rxb3 {[%emt 0:00:19]} 33. cxb3 $15 {[%emt 0:00:05][%mdl 4096] Endgame KRN-KRN} Rb8 {[%emt 0:00:08] Prevents b4.} 34. Nc1 {[%emt 0:01:03]} h5 {[%emt 0:03:01][%mdl 1024] Black has compensation.} 35. g3 {[%emt 0:00:29]} Ke7 {[%emt 0:00:57]} 36. Ke2 {[%emt 0:01:33]} Rg8 {[%emt 0:01:07]} 37. Kf2 {[%emt 0:00:26]} Rb8 {[%emt 0:00:02]} 38. Ke2 {[%emt 0:00:04]} Kd7 {[%emt 0:01:06]} 39. Kf2 $1 {[%emt 0:00:32]} Kc7 {[%emt 0:00:48]} 40. Ke2 {[%emt 0:00:00]} (40. Ne2 $5 {[%cal Re2d4]}) 40... Rg8 {[%emt 0:00:00]} 41. Kf2 {[%emt 0:02:06]} Rg4 {[%emt 0:13:58]} (41... f4 $5 42. gxf4 Rg4 $11) 42. Ne2 {[%emt 0:16:15]} Re4 {[%emt 0:01:03] ...Kb7 is the strong threat.} 43. Kf1 $2 {[%emt 0:01:47][%mdl 8192] [#] White is now going downhill.} (43. Nf4 $11 {and White is okay.}) 43... d3 $1 $19 {[%emt 0:05:31]} 44. Rxe4 {[%emt 0:00:22]} (44. Nc3 $142 Rxe5 45. Nb5+ Kd7 46. Rc3) 44... fxe4 {[%emt 0:00:17] KN-KN} 45. Nf4 {[%emt 0:02:42]} Nd4 {[%emt 0:08:42] ( -> ...d2)} 46. Ke1 {[%emt 0:02:45]} Kc6 {[%emt 0:02:37]} 47. Nxh5 {[%emt 0:06:50]} Nf3+ {[%emt 0:02:05]} 48. Kd1 {[%emt 0:04:03]} Kxc5 {[%emt 0:02:02]} 49. Nf4 {[%emt 0:00:37]} Kd4 {[%emt 0:00:16]} 50. h5 {[%emt 0:00:28]} Ng5 {[%emt 0:01:34]} ({Stronger than} 50... Kxe5 51. h6 Ng5 52. Kd2 $11) 51. h6 {[%emt 0:00:19]} e3 {[%emt 0:00:32]} 52. Nxe6+ {[%emt 0:00:53]} Nxe6 {[%emt 0:00:08] KN-KP. Black mates.} 53. h7 {[%emt 0:00:11]} e2+ {[%emt 0:00:05]} 54. Kd2 {[%emt 0:00:10]} Ng5 {[%emt 0:00:05]} 55. h8=Q {[%emt 0:00:29]} Nf3+ {[%emt 0:00:08]} 56. Kc1 {[%emt 0:00:03]} e1=Q+ {[%emt 0:00:11]} 57. Kb2 {[%emt 0:00:05]} Qxe5 {[%emt 0:00:42]} 58. Qd8+ {[%emt 0:01:24]} Ke3+ {[%emt 0:00:06]} 59. Ka2 {[%emt 0:00:32]} d2 {[%emt 0:00:07] Weighted Error Value: White=0.53/Black=0.13 (very precise)} 0-1

[Event "58th Akiba Rubinstein A 2022"]
[Site "Polanica-Zdroj"]
[Date "2022.08.19"]
[Round "7.4"]
[White "Lambrecht, Tomasz"]
[Black "Skurniak, Szymon"]
[Result "1/2-1/2"]
[ECO "A41"]
[WhiteElo "1956"]
[BlackElo "2051"]
[Annotator "NA RC"]
[PlyCount "20"]
[EventDate "2022.08.13"]
[EventCountry "POL"]
[SourceTitle "playchess.com"]
[Source "ChessBase"]
[SourceQuality "1"]
[TimeControl "40/5400+30:1800+30"]

1. d4 {[%emt 0:00:38]} d6 {[%emt 0:00:13]} 2. Nf3 {[%emt 0:02:43]} Bg4 {[%emt 0:01:11]} 3. e4 {[%emt 0:02:04]} Nf6 {[%emt 0:00:31]} 4. Nc3 {[%emt 0:00:14]} c6 {[%emt 0:01:55]} 5. h3 {[%emt 0:01:20]} Bh5 {[%emt 0:00:33]} 6. Qe2 {[%emt 0:01:26]} e6 {[%emt 0:06:48]} 7. g4 {[%emt 0:03:31]} Bg6 {[%emt 0:00:04]} 8. h4 {[%emt 0:03:35]} h5 {[%emt 0:15:50]} 9. g5 {[%emt 0:01:27]} Nfd7 {[%emt 0:02:58]} 10. Bh3 {[%emt 0:02:11]} Qb6 {[%emt 0:06:39]} 1/2-1/2

[Event "58th Akiba Rubinstein A 2022"]
[Site "Polanica-Zdroj"]
[Date "2022.08.19"]
[Round "7.5"]
[White "Barwinska, Ewa"]
[Black "Skrzypczynski, Kacper"]
[Result "1/2-1/2"]
[ECO "C41"]
[WhiteElo "1940"]
[BlackElo "1793"]
[Annotator "NA RC"]
[PlyCount "165"]
[EventDate "2022.08.13"]
[EventCountry "POL"]
[SourceTitle "playchess.com"]
[Source "ChessBase"]
[SourceQuality "1"]
[TimeControl "40/5400+30:1800+30"]

1. e4 {[%emt 0:00:04]} d6 {[%emt 0:00:11]} 2. d4 {[%emt 0:00:13]} Nf6 {[%emt 0:00:06]} 3. Nc3 {[%emt 0:00:06]} e5 {[%emt 0:00:06]} 4. Nf3 {[%emt 0:00:07]} Nbd7 {[%emt 0:00:06]} 5. Bc4 {[%emt 0:00:46]} Be7 {[%emt 0:00:06]} 6. O-O {[%emt 0:01:19]} O-O {[%emt 0:00:07]} 7. h3 {[%emt 0:02:40]} h6 {[%emt 0:00:08]} 8. a4 {[%emt 0:01:22]} c6 {[%emt 0:00:19]} 9. Re1 {[%emt 0:02:06]} Qc7 {[%emt 0:00:42]} 10. Ba2 {[%emt 0:07:16]} Re8 {[%emt 0:00:29]} 11. Be3 {[%emt 0:07:11]} a5 {[%emt 0:01:37]} 12. d5 {[%emt 0:06:02]} Nf8 {[%emt 0:08:05]} 13. Qd3 {[%emt 0:05:57]} Ng6 {[%emt 0:05:06]} 14. Rad1 {[%emt 0:05:11]} Rf8 {[%emt 0:05:32]} 15. Nd2 {[%emt 0:07:37]} Nh5 {[%emt 0:05:02]} 16. Nc4 {[%emt 0:02:06]} Nhf4 {[%emt 0:01:26]} 17. Bxf4 {[%emt 0:05:27]} Nxf4 {[%emt 0:00:15]} 18. Qg3 {[%emt 0:01:04]} Bd7 {[%emt 0:08:59]} 19. Ne3 {[%emt 0:04:12]} Qb6 {[%emt 0:06:13]} 20. Bb3 {[%emt 0:01:04]} Kh7 {[%emt 0:20:14]} 21. Nf5 {[%emt 0:11:24]} Bxf5 {[%emt 0:00:25]} 22. exf5 {[%emt 0:00:01]} g6 {[%emt 0:07:30]} 23. Qg4 {[%emt 0:06:57]} Rad8 {[%emt 0:03:45]} 24. Ne2 {[%emt 0:11:39]} Nxe2+ {[%emt 0:01:16]} 25. Rxe2 {[%emt 0:00:23]} c5 {[%emt 0:03:01]} 26. Bc4 {[%emt 0:03:37]} h5 {[%emt 0:07:34]} 27. Qf3 {[%emt 0:00:12]} Bf6 {[%emt 0:00:30]} 28. b3 {[%emt 0:00:14]} Qc7 {[%emt 0:01:05]} 29. Bd3 {[%emt 0:00:15]} Kg7 {[%emt 0:01:17]} 30. Qg3 {[%emt 0:02:31]} h4 {[%emt 0:00:08]} 31. Qg4 {[%emt 0:00:14]} Qd7 {[%emt 0:00:41]} 32. Re3 {[%emt 0:01:06]} Rh8 {[%emt 0:00:16]} 33. Rf3 {[%emt 0:01:33]} Rh6 {[%emt 0:00:49]} 34. Qc4 {[%emt 0:01:26]} Rh5 {[%emt 0:00:45]} 35. fxg6 {[%emt 0:01:02]} fxg6 {[%emt 0:00:09]} 36. Re1 {[%emt 0:01:20]} Bg5 {[%emt 0:05:00]} 37. Re4 {[%emt 0:01:43]} Rh6 {[%emt 0:02:14]} 38. Rg4 {[%emt 0:00:22]} Bf6 {[%emt 0:01:24]} 39. Qe4 {[%emt 0:01:02]} Qf7 {[%emt 0:03:24]} 40. Qc4 {[%emt 0:00:00]} Rf8 {[%emt 0:00:00]} 41. Be4 {[%emt 0:04:53]} Qe8 {[%emt 0:04:37]} 42. Qd3 {[%emt 0:02:06]} Be7 {[%emt 0:02:12]} 43. Rxf8 {[%emt 0:03:02]} Bxf8 {[%emt 0:00:10]} 44. Qc3 {[%emt 0:03:15]} b6 {[%emt 0:03:46]} 45. f4 {[%emt 0:04:07]} Kh7 {[%emt 0:00:27]} 46. f5 {[%emt 0:00:43]} gxf5 {[%emt 0:00:09]} 47. Bxf5+ {[%emt 0:00:04]} Kh8 {[%emt 0:00:11]} 48. Be6 {[%emt 0:03:50]} Bg7 {[%emt 0:00:03]} 49. Qc4 {[%emt 0:00:57]} Qd8 {[%emt 0:01:36]} 50. Qa6 {[%emt 0:03:17]} e4 {[%emt 0:01:06]} 51. Rxe4 {[%emt 0:00:35]} Bd4+ {[%emt 0:00:15]} 52. Kh1 {[%emt 0:00:26]} Qf8 {[%emt 0:00:59]} 53. Rg4 {[%emt 0:04:10]} Bg7 {[%emt 0:01:46]} 54. Qe2 {[%emt 0:01:39]} Qf6 {[%emt 0:00:38]} 55. Qe1 {[%emt 0:01:10]} Rh5 {[%emt 0:02:27]} 56. c4 {[%emt 0:01:32]} Rh6 {[%emt 0:00:41]} 57. Re4 {[%emt 0:00:55]} Qa1 {[%emt 0:05:09]} 58. Qxa1 {[%emt 0:00:39]} Bxa1 {[%emt 0:00:06]} 59. Bg4 {[%emt 0:02:32]} Be5 {[%emt 0:00:09]} 60. Kg1 {[%emt 0:00:37]} Kg7 {[%emt 0:00:51]} 61. Bf3 {[%emt 0:00:07]} Kf7 {[%emt 0:00:32]} 62. Kf2 {[%emt 0:00:08]} Ke7 {[%emt 0:00:58]} 63. Ke3 {[%emt 0:00:04]} Kd8 {[%emt 0:00:28]} 64. Rg4 {[%emt 0:00:21]} Rh8 {[%emt 0:00:21]} 65. Rg6 {[%emt 0:00:40]} Rf8 {[%emt 0:01:15]} 66. Rg4 {[%emt 0:01:02]} Bd4+ {[%emt 0:00:42]} 67. Kd3 {[%emt 0:00:12]} Rh8 {[%emt 0:01:50]} 68. Be4 {[%emt 0:00:44]} Be5 {[%emt 0:03:25]} 69. Bf5 {[%emt 0:00:17]} Ke7 {[%emt 0:00:59]} 70. Ke4 {[%emt 0:00:30]} Rh6 {[%emt 0:00:20]} 71. Rg8 {[%emt 0:00:42]} Rh8 {[%emt 0:00:18]} 72. Rg6 {[%emt 0:00:16]} Bh2 {[%emt 0:02:45]} 73. Be6 {[%emt 0:01:39]} Be5 {[%emt 0:00:13]} 74. Bg4 {[%emt 0:00:22]} Rf8 {[%emt 0:00:36]} 75. Bf5 {[%emt 0:00:52]} Bh2 {[%emt 0:00:44]} 76. Rh6 {[%emt 0:00:19]} Bg3 {[%emt 0:00:10]} 77. Rg6 {[%emt 0:00:40]} Be5 {[%emt 0:00:34]} 78. Rg4 {[%emt 0:00:33]} Rh8 {[%emt 0:00:25]} 79. Be6 {[%emt 0:00:22]} Kf6 {[%emt 0:00:18]} 80. Bf5 {[%emt 0:00:42]} Kf7 {[%emt 0:00:51]} 81. Be6+ {[%emt 0:00:26]} Kf6 {[%emt 0:00:10]} 82. Bf5 {[%emt 0:00:06]} Kf7 {[%emt 0:00:07]} 83. Be6+ {[%emt 0:00:52]} 1/2-1/2

[Event "58th Akiba Rubinstein A 2022"]
[Site "Polanica-Zdroj"]
[Date "2022.08.19"]
[Round "7.6"]
[White "Bugajski, Robert"]
[Black "Kejna, Piotr"]
[Result "1-0"]
[ECO "A16"]
[WhiteElo "2075"]
[BlackElo "1970"]
[Annotator "NA RC"]
[PlyCount "107"]
[EventDate "2022.08.13"]
[EventCountry "POL"]
[SourceTitle "playchess.com"]
[Source "ChessBase"]
[SourceQuality "1"]
[TimeControl "40/5400+30:1800+30"]

1. c4 {[%emt 0:00:02]} Nf6 {[%emt 0:00:04]} 2. Nc3 {[%emt 0:00:11]} e5 {[%emt 0:01:01]} 3. Nf3 {[%emt 0:00:30]} d6 {[%emt 0:00:29]} 4. d4 {[%emt 0:01:00]} exd4 {[%emt 0:00:20]} 5. Nxd4 {[%emt 0:00:09]} g6 {[%emt 0:00:37]} 6. g3 {[%emt 0:00:11]} Bg7 {[%emt 0:00:49]} 7. Bg2 {[%emt 0:00:11]} O-O {[%emt 0:00:57]} 8. O-O {[%emt 0:00:10]} Nbd7 {[%emt 0:01:45]} 9. e4 {[%emt 0:01:55]} Nc5 {[%emt 0:01:20]} 10. f3 {[%emt 0:02:00]} a5 {[%emt 0:02:11]} 11. Be3 {[%emt 0:00:35]} Re8 {[%emt 0:03:15]} 12. Qd2 {[%emt 0:01:00]} Be6 {[%emt 0:01:17]} 13. b3 {[%emt 0:02:33]} Qc8 {[%emt 0:03:53]} 14. Ndb5 {[%emt 0:04:38]} a4 {[%emt 0:02:54]} 15. Rab1 {[%emt 0:03:05]} Nfd7 {[%emt 0:10:52]} 16. Nd5 {[%emt 0:14:02]} Bxd5 {[%emt 0:02:02]} 17. cxd5 {[%emt 0:01:14]} Nb6 {[%emt 0:07:33]} 18. Rfc1 {[%emt 0:00:51]} axb3 {[%emt 0:10:41]} 19. axb3 {[%emt 0:00:18]} Qd7 {[%emt 0:03:09]} 20. Bf1 {[%emt 0:18:39]} Rec8 {[%emt 0:02:32]} 21. Qf2 {[%emt 0:07:59]} Bf8 {[%emt 0:04:01]} 22. Rc2 {[%emt 0:03:35]} Ra5 {[%emt 0:04:47]} 23. Qe2 {[%emt 0:03:53]} Raa8 {[%emt 0:02:04]} 24. Qf2 {[%emt 0:05:00]} Ra5 {[%emt 0:00:09]} 25. Nd4 {[%emt 0:01:19]} Raa8 {[%emt 0:04:38]} 26. b4 {[%emt 0:04:10]} Nca4 {[%emt 0:01:07]} 27. Rbc1 {[%emt 0:00:24]} Be7 {[%emt 0:01:15]} 28. Bb5 {[%emt 0:03:41]} Qd8 {[%emt 0:00:09]} 29. Ra2 {[%emt 0:00:50]} Bf6 {[%emt 0:05:48]} 30. Qc2 {[%emt 0:00:56]} Nc3 {[%emt 0:00:21]} 31. Rxa8 {[%emt 0:01:45]} Bxd4 {[%emt 0:00:13]} 32. Bxd4 {[%emt 0:01:20]} Nxb5 {[%emt 0:00:33]} 33. Rxc8 {[%emt 0:01:03]} Nxc8 {[%emt 0:00:02]} 34. Ba1 {[%emt 0:00:42]} f6 {[%emt 0:00:39]} 35. Qc4 {[%emt 0:02:08]} Nca7 {[%emt 0:00:34]} 36. Bb2 {[%emt 0:02:36]} Kf7 {[%emt 0:02:27]} 37. Ra1 {[%emt 0:00:17]} b6 {[%emt 0:00:43]} 38. f4 {[%emt 0:01:40]} Ke8 {[%emt 0:05:44]} 39. Re1 {[%emt 0:02:44]} Kd7 {[%emt 0:02:02]} 40. e5 {[%emt 0:00:00]} dxe5 {[%emt 0:00:00]} 41. fxe5 {[%emt 0:01:50]} f5 {[%emt 0:02:19]} 42. d6 {[%emt 0:07:41]} Kc8 {[%emt 0:02:57]} 43. Qe6+ {[%emt 0:01:58]} Kb7 {[%emt 0:00:31]} 44. d7 {[%emt 0:03:41]} Nc6 {[%emt 0:03:19]} 45. Qe8 {[%emt 0:04:53]} Qg5 {[%emt 0:00:30]} 46. Bc1 {[%emt 0:04:06]} Qg4 {[%emt 0:00:10]} 47. Bf4 {[%emt 0:02:49]} Ncd4 {[%emt 0:03:58]} 48. Qc8+ {[%emt 0:00:52]} Kc6 {[%emt 0:00:04]} 49. Rc1+ {[%emt 0:02:09]} Nc3 {[%emt 0:00:22]} 50. d8=Q Nde2+ {[%emt 0:01:57]} 51. Kf2 {[%emt 0:06:34]} Kb5 {[%emt 0:00:38]} 52. Qd3+ {[%emt 0:01:15]} Kxb4 {[%emt 0:00:14]} 53. Rb1+ {[%emt 0:02:03]} Nxb1 {[%emt 0:00:20]} 54. Qxb1+ {[%emt 0:00:05]} 1-0

[Event "58th Akiba Rubinstein A 2022"]
[Site "Polanica-Zdroj"]
[Date "2022.08.19"]
[Round "7.7"]
[White "Sliwerski, Radoslaw"]
[Black "Kolodziejski, Piotr"]
[Result "0-1"]
[ECO "E20"]
[WhiteElo "1951"]
[BlackElo "2107"]
[Annotator "NA RC"]
[PlyCount "50"]
[EventDate "2022.08.13"]
[EventCountry "POL"]
[SourceTitle "playchess.com"]
[Source "ChessBase"]
[SourceQuality "1"]
[TimeControl "40/5400+30:1800+30"]

1. d4 Nf6 2. c4 e6 3. Nc3 Bb4 4. f3 c5 5. d5 O-O 6. e4 b5 7. Nh3 bxc4 8. Bxc4 exd5 9. exd5 d6 10. Nf4 Re8+ 11. Kf2 Ba6 12. Bxa6 Nxa6 13. Bd2 c4 14. Re1 Qd7 15. Kf1 Rxe1+ 16. Qxe1 Re8 17. Ne4 Nxe4 18. Bxb4 Qf5 19. Bd2 Nxd2+ 20. Qxd2 Nc5 21. h4 Qf6 22. h5 h6 23. Rc1 Qh4 24. g4 Qh1+ 25. Kf2 Qh2+ 0-1

[Event "58th Akiba Rubinstein A 2022"]
[Site "Polanica-Zdroj"]
[Date "2022.08.19"]
[Round "7.8"]
[White "Antoniewicz, Jakub"]
[Black "Majocha, Piotr"]
[Result "0-1"]
[ECO "A28"]
[WhiteElo "1931"]
[BlackElo "2036"]
[Annotator "NA RC"]
[PlyCount "66"]
[EventDate "2022.08.13"]
[EventCountry "POL"]
[SourceTitle "playchess.com"]
[Source "ChessBase"]
[SourceQuality "1"]
[TimeControl "40/5400+30:1800+30"]

1. c4 {[%emt 0:04:52]} e5 {[%emt 0:00:47]} 2. Nc3 {[%emt 0:00:06]} Nf6 {[%emt 0:00:07]} 3. Nf3 {[%emt 0:00:06]} Nc6 {[%emt 0:00:33]} 4. e3 {[%emt 0:00:09]} Bb4 {[%emt 0:01:52]} 5. Qc2 {[%emt 0:00:06]} O-O {[%emt 0:00:28]} 6. Nd5 {[%emt 0:00:23]} Be7 {[%emt 0:00:55]} 7. Ng5 {[%emt 0:00:40]} g6 {[%emt 0:00:17]} 8. Nxe7+ {[%emt 0:01:18]} Qxe7 {[%emt 0:00:13]} 9. a3 {[%emt 0:15:25]} d6 {[%emt 0:02:21]} 10. b4 {[%emt 0:01:58]} h6 {[%emt 0:01:34]} 11. Nf3 {[%emt 0:05:44]} e4 {[%emt 0:00:17]} 12. b5 {[%emt 0:04:04]} exf3 {[%emt 0:03:02]} 13. bxc6 {[%emt 0:00:05]} bxc6 {[%emt 0:01:17]} 14. Bb2 {[%emt 0:05:08]} Nd7 {[%emt 0:01:57]} 15. gxf3 {[%emt 0:00:29]} Kh7 {[%emt 0:08:28]} 16. f4 {[%emt 0:07:38]} Nc5 {[%emt 0:07:41]} 17. f3 {[%emt 0:24:04]} Qh4+ {[%emt 0:05:33]} 18. Ke2 {[%emt 0:01:01]} Bf5 {[%emt 0:19:05]} 19. e4 {[%emt 0:02:50]} Rae8 {[%emt 0:01:08]} 20. d3 {[%emt 0:08:17]} Qxf4 {[%emt 0:01:06]} 21. Qc3 {[%emt 0:00:01]} f6 {[%emt 0:00:10]} 22. Bc1 {[%emt 0:00:02]} Qh4 {[%emt 0:01:06]} 23. Be3 {[%emt 0:00:13]} Ne6 {[%emt 0:03:29]} 24. Kd2 {[%emt 0:02:36]} Bh3 {[%emt 0:03:48]} 25. Kc2 {[%emt 0:03:45]} f5 {[%emt 0:04:48]} 26. Qd2 {[%emt 0:03:56]} fxe4 {[%emt 0:01:49]} 27. fxe4 {[%emt 0:00:01]} c5 {[%emt 0:03:11]} 28. Qe1 {[%emt 0:05:31]} Qh5 {[%emt 0:04:52]} 29. Be2 {[%emt 0:00:24]} Bg4 {[%emt 0:00:04]} 30. Bxg4 {[%emt 0:00:25]} Qxg4 {[%emt 0:00:04]} 31. Qg3 {[%emt 0:00:03]} Qe2+ {[%emt 0:01:13]} 32. Bd2 {[%emt 0:01:00]} Nd4+ {[%emt 0:01:29]} 33. Kc3 {[%emt 0:00:42]} Rf3 {[%emt 0:00:05]} 0-1